bitfinex/quotes_SOLUSD_20250403
["timestamp","ask_amount","ask_price","bid_price","bid_amount"]
[1743690749569,8.7728,113.99,113.95,48.87442959]
[1743690749973,48.87442959,114.0,113.95,48.87442959]
[1743690749974,18.8515,114.01,113.96,48.87442959]
[1743690750185,18.8515,114.01,113.98,48.87442959]
[1743690750980,27.41844886,114.04,114.0,48.87442959]
[1743690751284,48.87442959,114.03,113.98,48.87442959]
[1743690751492,49.34054886,114.04,113.98,48.87442959]
[1743690751689,49.34054886,114.04,113.99,48.87442959]
[1743690751873,98.21497845,114.04,113.99,48.87442959]
[1743690752285,49.34054886,114.04,113.99,48.87442959]
[1743690752464,98.21497845,114.04,113.97,8.7738]
[1743690752671,98.21497845,114.04,113.99,48.87442959]
[1743690752860,48.87442959,114.03,113.98,48.87442959]
[1743690753064,48.87442959,114.03,113.97,48.87442959]
[1743690753263,48.87442959,114.03,113.98,48.87442959]
[1743690753580,49.34054886,114.04,113.98,48.87442959]
[1743690753774,48.87442959,114.03,113.95,8.7752]
[1743690753974,48.87442959,114.03,113.98,48.87442959]
[1743690753975,8.7703,114.02,113.98,48.87442959]
[1743690754178,48.87442959,114.01,113.96,48.87442959]
[1743690754383,57.64472959,114.02,113.97,48.87442959]
[1743690754767,19.07613357,114.01,113.97,48.87442959]
[1743690755072,19.07613357,114.01,113.94,8.7761]
[1743690755073,48.87442959,114.0,113.95,48.87442959]
[1743690755285,67.95056316,114.01,113.94,8.7764]
[1743690755489,67.95056316,114.01,113.96,48.87442959]
[1743690755990,76.72236316,114.01,113.96,48.87442959]
[1743690756686,48.87442959,114.0,113.95,48.87442959]
[1743690757195,57.64622959,114.01,113.96,48.87442959]
[1743690757690,144.4707,114.02,113.97,48.87442959]
[1743690758006,135.7,114.02,113.98,57.64722959]
[1743690758161,8.7699,114.03,113.98,57.64722959]
[1743690758367,57.64432959,114.03,113.98,48.87442959]
[1743690758901,0.03,114.04,114.01,48.87442959]
[1743690759193,0.03,114.04,113.97,30.7093]
[1743690759194,0.03,114.04,114.02,48.87442959]
[1743690759403,0.03,114.04,114.03,48.87442959]
[1743690759783,0.03,114.04,114.03,32.64066911]
[1743690759976,0.03,114.04,114.03,41.41026911]
[1743690760183,0.03,114.04,114.03,57.71913414]
[1743690761076,0.03,114.04,113.99,32.0109]
[1743690761403,0.03,114.04,113.97,50.2626]
[1743690761404,0.03,114.04,113.98,8.7734]
[1743690761569,48.97953414,114.04,113.99,48.94953414]
[1743690761979,8.7696,114.03,113.99,48.94953414]
[1743690762184,57.71913414,114.03,113.98,57.72293414]
[1743690762487,8.7696,114.03,113.99,48.94953414]
[1743690762986,0.03,114.04,114.01,48.94953414]
[1743690763493,57.74843414,114.04,113.99,48.94953414]
[1743690763689,8.7989,114.04,114.0,48.94953414]
[1743690763876,57.74843414,114.04,113.99,48.94953414]
[1743690764077,0.03,114.04,114.03,48.94953414]
[1743690766009,0.03,114.04,114.01,48.94953414]
[1743690766598,0.03,114.04,114.02,48.94953414]
[1743690768100,0.03,114.04,114.03,57.71913414]
[1743690768479,0.03,114.04,114.03,106.66866828]
[1743690769298,0.03,114.04,114.03,125.74480185]
[1743690769798,0.03,114.04,114.03,76.79526771]
[1743690770379,0.03,114.04,114.03,125.74480185]
[1743690772198,0.03,114.04,114.03,131.80380185]
[1743690772502,0.03,114.1,114.03,145.41998935]
[1743690772681,0.03,114.1,114.08,45.74315578]
[1743690772881,0.03,114.1,114.09,45.74315578]
[1743690773499,0.03,114.1,114.08,45.74315578]
[1743690773940,0.03,114.1,114.09,45.74315578]
[1743690774081,0.03,114.1,114.09,46.16964049]
[1743690774278,0.03,114.1,114.09,54.93464049]
[1743690774478,0.03,114.1,114.09,54.50815578]
[1743690775213,0.03,114.1,114.09,54.93464049]
[1743690775415,0.03,114.1,114.09,54.50815578]
[1743690777918,0.03,114.1,114.09,54.93464049]
[1743690779012,0.03,114.1,114.09,73.58428935]
[1743690779216,0.03,114.12,114.11,91.91279627]
[1743690780093,0.03,114.12,114.11,46.16964049]
[1743690780699,0.03,114.12,114.11,91.91279627]
[1743690781304,0.03,114.12,114.11,54.93304049]
[1743690781702,0.03,114.12,114.11,88.74775387]
[1743690782021,0.03,114.12,114.11,49.70399486]
[1743690782914,0.03,114.12,114.11,98.80775387]
[1743690783122,0.03,114.16,114.11,98.80775387]
[1743690783123,0.03,114.16,114.13,0.42648471]
[1743690783316,0.03,114.16,114.15,30.45411015]
[1743690784807,0.03,114.16,114.1,6.3991]
[1743690785006,30.48411015,114.16,114.11,30.45411015]
[1743690785211,30.45411015,114.15,114.11,30.45411015]
[1743690785415,8.7611,114.14,114.11,30.45411015]
[1743690786119,8.7611,114.14,114.07,6.79806157]
[1743690786319,8.7611,114.14,114.1,30.45411015]
[1743690786503,8.7611,114.14,114.11,30.45411015]
[1743690786706,8.7611,114.14,114.1,30.45411015]
[1743690787515,39.21521015,114.14,114.09,30.45411015]
[1743690788024,61.11811015,114.14,114.09,30.45411015]
[1743690788235,30.45411015,114.13,114.06,10.54946157]
[1743690788539,30.45411015,114.13,114.08,30.45411015]
[1743690788747,61.11811015,114.14,114.09,30.45411015]
[1743690788911,8.7611,114.14,114.11,30.45411015]
[1743690789400,8.7611,114.14,114.1,30.45411015]
[1743690789702,8.7611,114.14,114.11,30.45411015]
[1743690790305,8.7611,114.14,114.07,18.64964886]
[1743690790306,61.11811015,114.14,114.07,8.7665]
[1743690790505,39.21521015,114.14,114.1,30.45411015]
[1743690790718,39.21521015,114.14,114.09,30.45411015]
[1743690790945,18.64964886,114.13,114.09,30.45411015]
[1743690791141,32.06211015,114.16,114.11,30.51711015]
[1743690791461,0.03,114.14,114.12,30.45411015]
[1743690792025,0.03,114.14,114.13,30.45411015]
[1743690792202,0.03,114.14,114.13,30.88059486]
[1743690793342,0.03,114.14,114.13,30.45411015]
[1743690793559,0.03,114.14,114.11,0.063]
[1743690794025,0.03,114.14,114.13,30.45411015]
[1743690798443,0.03,114.14,114.12,30.45411015]
[1743690799211,0.03,114.14,114.11,0.063]
[1743690799212,0.03,114.14,114.13,30.45411015]
[1743690799422,0.03,114.14,114.11,8.8264]
[1743690799739,0.03,114.14,114.13,30.45411015]
[1743690800341,6.2377,114.13,114.11,0.063]
[1743690800635,49.53024372,114.12,114.11,0.0001]
[1743690801015,79.98435387,114.12,114.11,0.0001]
[1743690801227,49.53024372,114.12,114.11,0.0001]
[1743690801426,75.91024372,114.12,114.11,0.0001]
[1743690801623,108.55545742,114.12,114.11,0.0001]
[1743690801847,108.55545742,114.12,114.04,30.45411015]
[1743690801848,18.64964886,114.08,114.04,30.45411015]
[1743690802142,8.7634,114.11,114.07,30.45411015]
[1743690802453,8.7634,114.11,114.04,30.6908]
[1743690802454,8.7634,114.11,114.09,30.45411015]
[1743690802814,8.7634,114.11,114.08,30.45411015]
[1743690803243,8.7627,114.12,114.08,30.45411015]
[1743690803416,30.45411015,114.09,114.01,8.7711]
[1743690803615,30.45411015,114.07,114.02,30.45411015]
[1743690803840,54.68964886,114.08,114.03,30.45411015]
[1743690804045,85.14375901,114.08,114.01,8.7711]
[1743690804218,30.45411015,114.07,114.02,30.45411015]
[1743690804715,49.10375901,114.06,113.99,0.063]
[1743690804916,30.45411015,114.04,113.99,30.51711015]
[1743690805137,8.7688,114.04,114.0,30.45411015]
[1743690805334,30.45411015,114.03,113.99,0.063]
[1743690805948,30.45411015,114.02,113.99,0.063]
[1743690806319,49.10375901,114.03,113.99,0.063]
[1743690806652,30.45411015,114.01,113.99,0.063]
[1743690807154,39.22571015,114.01,113.99,0.063]
[1743690807459,87.99505387,114.0,113.99,0.063]
[1743690807744,87.99505387,114.0,113.99,0.0001]
[1743690808144,26.0,113.97,113.93,0.063]
[1743690808322,30.45411015,113.94,113.93,0.063]
[1743690808526,30.45411015,113.95,113.93,0.063]
[1743690809242,8.7765,113.94,113.93,0.063]
[1743690809824,39.23061015,113.94,113.93,0.063]
[1743690810545,8.7765,113.94,113.93,0.063]
[1743690810942,57.88025901,113.94,113.93,0.063]
[1743690812227,39.23011015,113.95,113.93,0.063]
[1743690812426,174.92921015,113.96,113.93,0.063]
[1743690813044,135.7,113.96,113.93,0.063]
[1743690813245,174.92931015,113.96,113.93,0.063]
[1743690813452,56.45411015,113.94,113.93,0.063]
[1743690813829,30.45411015,113.95,113.93,0.063]
[1743690814351,49.10375901,113.94,113.93,0.063]
[1743690814938,56.15124372,113.94,113.93,0.063]
[1743690815256,95.69177211,113.94,113.93,0.063]
[1743690816151,97.24967211,113.94,113.93,0.0001]
[1743690816327,19.07613357,113.93,113.92,0.063]
[1743690816524,49.68520284,113.93,113.92,0.0001]
[1743690817854,88.46250284,113.93,113.92,0.0001]
[1743690819046,45.07613357,113.91,113.9,0.0001]
[1743690819245,85.74520284,113.91,113.9,0.0001]
[1743690819642,25.72653357,113.89,113.88,0.0001]
[1743690819840,25.72653357,113.89,113.83,0.063]
[1743690819841,19.07613357,113.84,113.83,0.063]
[1743690820045,59.74520284,113.84,113.83,0.063]
[1743690820238,195.44520284,113.84,113.83,0.063]
[1743690821238,59.74520284,113.84,113.83,0.063]
[1743690821434,54.80029413,113.84,113.83,0.063]
[1743690821961,63.58449413,113.84,113.83,0.063]
[1743690822323,27.5126,113.82,113.81,0.063]
[1743690822529,0.14216157,113.81,113.79,0.0001]
[1743690822752,30.80632213,113.8,113.79,0.0001]
[1743690823567,49.31380942,113.8,113.79,0.0001]
[1743690824068,26.0,113.8,113.79,0.0001]
[1743690824569,49.31380942,113.82,113.79,0.0001]
[1743690824570,8.785,113.83,113.79,30.66426056]
[1743690824744,40.72416056,113.84,113.79,30.66426056]
[1743690824745,18.8445,113.84,113.79,30.66426056]
[1743690825067,49.31380942,113.83,113.79,0.0001]
[1743690825939,58.09920942,113.83,113.79,0.0001]
[1743690826470,30.66416056,113.82,113.79,0.0001]
[1743690826649,58.09920942,113.83,113.79,0.0001]
[1743690826970,49.31380942,113.81,113.79,0.0001]
[1743690827555,166.36416056,113.82,113.79,0.0001]
[1743690827764,39.44956056,113.83,113.79,0.0001]
[1743690827947,144.4838,113.85,113.8,30.66416056]
[1743690828269,8.7829,113.86,113.82,30.66416056]
[1743690830773,8.7861,113.82,113.79,0.0001]
[1743690831159,185.01380942,113.83,113.79,30.66426056]
[1743690831160,8.785,113.83,113.79,30.66426056]
[1743690831363,39.44876056,113.84,113.79,30.66426056]
[1743690831667,39.44876056,113.84,113.79,0.0001]
[1743690831668,30.66416056,113.82,113.79,0.0001]
[1743690831847,18.64964886,113.83,113.79,30.66426056]
[1743690832049,8.7858,113.82,113.79,0.0001]
[1743690832276,39.44996056,113.82,113.79,0.0001]
[1743690832569,30.66416056,113.81,113.79,0.0001]
[1743690832772,163.13544886,113.82,113.79,0.0001]
[1743690833272,8.7853,113.83,113.79,30.66426056]
[1743690833566,39.44946056,113.83,113.79,0.0001]
[1743690833774,8.7853,113.83,113.79,30.66426056]
[1743690833980,39.44946056,113.83,113.79,0.0001]
[1743690834372,49.31380942,113.81,113.79,0.0001]
[1743690834561,30.66416056,113.8,113.79,0.0001]
[1743690834768,49.31380942,113.81,113.79,0.0001]
[1743690835571,30.66416056,113.8,113.79,0.0001]
[1743690835872,49.31380942,113.8,113.79,0.0001]
[1743690836072,58.52759413,113.8,113.79,0.0001]
[1743690836659,0.42648471,113.78,113.77,0.063]
[1743690836885,49.74029413,113.78,113.77,0.0001]
[1743690837253,49.74029413,113.78,113.76,0.0001]
[1743690837455,59.80029413,113.77,113.76,0.0001]
[1743690837671,90.46445469,113.77,113.76,0.0001]
[1743690837872,59.80029413,113.77,113.76,0.0001]
[1743690838180,68.58989413,113.77,113.76,0.0001]
[1743690839755,68.58989413,113.77,113.71,0.063]
[1743690839971,49.31380942,113.72,113.71,0.063]
[1743690840162,58.10730942,113.72,113.71,0.063]
[1743690840483,68.16730942,113.72,113.71,0.063]
[1743690841259,68.59379413,113.72,113.71,0.063]
[1743690841455,204.29379413,113.72,113.71,0.063]
[1743690842678,173.62963357,113.72,113.71,0.063]
[1743690842987,8.7912,113.75,113.71,30.72716056]
[1743690843163,40.72416056,113.76,113.72,30.66416056]
[1743690843365,40.72416056,113.76,113.71,30.72716056]
[1743690843571,18.64964886,113.75,113.71,30.72716056]
[1743690843761,49.31380942,113.75,113.71,0.063]
[1743690843957,30.66416056,113.74,113.71,0.063]
[1743690844267,26.0,113.72,113.71,0.063]
[1743690844468,185.44029413,113.72,113.71,0.063]
[1743690844857,49.74029413,113.72,113.71,0.063]
[1743690846966,19.07613357,113.72,113.71,0.063]
[1743690847168,49.74029413,113.72,113.71,0.063]
[1743690848060,18.64964886,113.72,113.71,0.063]
[1743690848370,18.64964886,113.74,113.71,0.063]
[1743690848575,18.64964886,113.75,113.71,30.72716056]
[1743690848961,49.31380942,113.74,113.71,0.063]
[1743690849162,18.64964886,113.74,113.71,0.063]
[1743690849586,30.66416056,113.75,113.71,0.063]
[1743690849761,18.64964886,113.75,113.71,30.72716056]
[1743690850276,49.31380942,113.75,113.71,0.063]
[1743690850466,18.64964886,113.75,113.71,30.72716056]
[1743690850668,18.64964886,113.75,113.71,0.063]
[1743690850973,10.06,113.77,113.71,6.3492]
[1743690851169,49.31380942,113.76,113.71,6.3492]
[1743690851371,30.66416056,113.75,113.71,6.3492]
[1743690851567,30.66416056,113.74,113.71,0.063]
[1743690851767,26.0,113.73,113.71,0.063]
[1743690851982,18.64964886,113.74,113.71,0.063]
[1743690852290,166.36416056,113.75,113.71,0.063]
[1743690852886,135.7,113.75,113.71,30.72716056]
[1743690853081,40.72416056,113.77,113.72,30.66416056]
[1743690853579,49.31380942,113.76,113.71,0.063]
[1743690853786,30.66416056,113.75,113.71,0.063]
[1743690854083,49.31380942,113.76,113.71,30.72716056]
[1743690854795,166.79064527,113.75,113.71,0.063]
[1743690855001,44.64964886,113.72,113.71,0.063]
[1743690855284,26.0,113.72,113.71,0.063]
[1743690855487,135.7,113.74,113.71,0.063]
[1743690855693,18.64964886,113.76,113.72,30.66416056]
[1743690855875,18.64964886,113.76,113.71,0.063]
[1743690856060,49.31380942,113.76,113.71,30.72716056]
[1743690856265,30.66416056,113.75,113.71,30.72716056]
[1743690856776,49.31380942,113.76,113.71,30.72716056]
[1743690857172,30.66416056,113.75,113.71,0.063]
[1743690857590,18.64964886,113.74,113.71,0.063]
[1743690857890,18.64964886,113.75,113.71,39.52106056]
[1743690858183,18.64964886,113.75,113.71,8.8569]
[1743690858184,49.31380942,113.75,113.71,8.8569]
[1743690858495,18.85,113.77,113.72,30.66416056]
[1743690858693,40.72416056,113.77,113.71,8.8569]
[1743690858991,49.31380942,113.76,113.71,39.52106056]
[1743690859197,18.64964886,113.76,113.72,30.66416056]
[1743690859499,2.19766127,113.76,113.74,30.66416056]
[1743690859671,2.19766127,113.76,113.75,30.66416056]
[1743690859866,2.19766127,113.76,113.75,32.5556837]
[1743690860914,49.57326056,113.82,113.76,0.28432314]
[1743690860915,10.123,113.82,113.76,0.28432314]
[1743690861099,0.063,113.82,113.79,30.66416056]
[1743690861397,0.063,113.82,113.79,39.45176056]
[1743690861576,0.063,113.82,113.8,30.66416056]
[1743690861983,0.063,113.82,113.78,39.45276056]
[1743690862584,0.063,113.82,113.78,8.7886]
[1743690862790,0.063,113.82,113.78,39.45276056]
[1743690864016,26.0,113.79,113.75,10.3977]
[1743690864202,40.70416056,113.79,113.75,1.6072]
[1743690864504,49.31380942,113.78,113.74,6.0923]
[1743690864680,49.31380942,113.78,113.73,30.66416056]
[1743690865702,30.66416056,113.77,113.72,41.03516056]
[1743690866078,39.45406056,113.77,113.72,1.5781]
[1743690866385,39.45406056,113.77,113.72,41.03566056]
[1743690866792,193.80290942,113.78,113.73,30.66416056]
[1743690867193,30.66416056,113.77,113.72,41.03566056]
[1743690867496,193.80290942,113.78,113.73,30.66416056]
[1743690867808,32.86154217,113.77,113.72,41.03566056]
[1743690868201,39.45456056,113.76,113.71,15.1918]
[1743690868508,2.19738161,113.77,113.74,30.66416056]
[1743690868704,166.36416056,113.78,113.74,30.66416056]
[1743690869007,166.36416056,113.78,113.73,30.66416056]
[1743690869306,135.7,113.78,113.74,30.66416056]
[1743690870405,175.15336056,113.78,113.73,39.45646056]
[1743690870784,135.7,113.78,113.74,30.66416056]
[1743690870988,49.31380942,113.77,113.72,8.7931]
[1743690871197,30.66416056,113.75,113.71,0.063]
[1743690871401,30.66416056,113.75,113.71,8.8572]
[1743690871605,30.66416056,113.76,113.71,39.52136056]
[1743690871796,30.66416056,113.75,113.71,0.063]
[1743690872198,30.66416056,113.75,113.71,8.8572]
[1743690872600,40.70416056,113.74,113.71,0.063]
[1743690873306,22.39888471,113.78,113.72,30.66416056]
[1743690873307,30.66416056,113.77,113.72,30.66416056]
[1743690873688,30.66416056,113.76,113.71,30.72716056]
[1743690874007,30.66416056,113.75,113.71,0.063]
[1743690874311,39.88034527,113.77,113.72,8.7935]
[1743690874609,49.31380942,113.76,113.72,8.7935]
[1743690874802,49.31380942,113.76,113.71,0.063]
[1743690874803,44.64964886,113.72,113.71,0.063]
[1743690874999,85.78029413,113.72,113.71,0.063]
[1743690876409,94.57379413,113.72,113.71,0.063]
[1743690877118,36.04,113.72,113.71,0.063]
[1743690877507,66.70416056,113.72,113.71,0.063]
[1743690877684,36.04,113.72,113.71,0.063]
[1743690877889,85.35380942,113.72,113.71,0.063]
[1743690878101,10.04,113.72,113.71,0.063]
[1743690879707,49.37680942,113.76,113.71,30.72716056]
[1743690879910,18.71264886,113.76,113.72,30.66416056]
[1743690880215,49.31380942,113.74,113.71,0.063]
[1743690880394,30.66416056,113.74,113.71,0.063]
[1743690880597,39.45626056,113.74,113.71,0.063]
[1743690881334,75.31380942,113.72,113.71,0.063]
[1743690881486,49.74029413,113.72,113.71,0.063]
[1743690881911,185.44029413,113.72,113.71,0.063]
[1743690882624,194.23379413,113.72,113.71,0.063]
[1743690882791,144.4935,113.72,113.71,0.063]
[1743690882986,175.15766056,113.72,113.71,0.063]
[1743690883401,177.35624393,113.72,113.71,0.063]
[1743690883813,196.00589279,113.72,113.71,0.063]
[1743690884802,193.80730942,113.72,113.71,0.063]
[1743690885401,194.23379413,113.72,113.71,0.063]
[1743690886197,189.00283357,113.7,113.69,0.063]
[1743690886401,75.74029413,113.68,113.67,0.03]
[1743690886714,94.57689413,113.68,113.67,0.03]
[1743690886902,82.97599498,113.68,113.67,0.0001]
[1743690887827,85.03344661,113.68,113.67,0.0001]
[1743690888196,85.17560818,113.68,113.67,0.0001]
[1743690890917,85.17560818,113.68,113.64,0.0001]
[1743690890918,19.07613357,113.65,113.64,0.0001]
[1743690891104,26.0,113.61,113.59,0.03]
[1743690891308,30.66416056,113.6,113.59,0.03]
[1743690891621,56.31719413,113.6,113.59,0.03]
[1743690891820,30.66416056,113.54,113.52,81.66847285]
[1743690892116,56.66416056,113.55,113.52,81.66847285]
[1743690892318,30.66416056,113.56,113.52,90.47727285]
[1743690892514,40.70416056,113.57,113.52,121.14143341]
[1743690892816,30.66416056,113.56,113.52,90.47727285]
[1743690893027,49.31380942,113.55,113.52,81.66847285]
[1743690893240,30.66416056,113.53,113.47,19.82770908]
[1743690893405,30.66416056,113.53,113.48,30.66416056]
[1743690893605,49.31380942,113.54,113.49,30.66416056]
[1743690893802,18.64964886,113.55,113.51,30.66416056]
[1743690894026,49.31380942,113.55,113.48,30.8424]
[1743690894213,49.31380942,113.55,113.46,32.40102213]
[1743690894214,30.66416056,113.5,113.46,8.8132]
[1743690894621,30.66416056,113.49,113.45,8.8141]
[1743690894926,30.66416056,113.49,113.44,8.8152]
[1743690894927,30.66416056,113.48,113.44,8.8152]
[1743690896428,185.01380942,113.49,113.44,39.47936056]
[1743690897106,135.7,113.49,113.48,0.03]
[1743690897401,30.66416056,113.5,113.48,0.03]
[1743690897603,10.04,113.51,113.48,30.69416056]
[1743690897819,30.66416056,113.53,113.48,30.69416056]
[1743690898023,30.66416056,113.52,113.48,0.03]
[1743690898526,18.64964886,113.53,113.48,30.69416056]
[1743690898826,30.66416056,113.53,113.49,8.8113]
[1743690899022,18.64964886,113.54,113.49,8.8113]
[1743690899227,18.64964886,113.55,113.51,30.66416056]
[1743690899427,49.31380942,113.55,113.5,30.66416056]
[1743690899616,30.66416056,113.54,113.5,30.66416056]
[1743690899815,30.66416056,113.53,113.49,8.8113]
[1743690900017,18.64964886,113.52,113.48,39.50586056]
[1743690900311,49.31380942,113.52,113.48,8.8417]
[1743690900519,49.31380942,113.52,113.48,0.03]
[1743690900833,30.66416056,113.51,113.48,0.03]
[1743690901126,49.31380942,113.52,113.48,0.03]
[1743690901727,18.64964886,113.52,113.48,30.69416056]
[1743690901928,10.04,113.56,113.5,30.66416056]
[1743690902124,40.70416056,113.56,113.51,30.66416056]
[1743690902508,37.49574886,113.56,113.5,30.66416056]
[1743690902728,49.31380942,113.55,113.5,30.66416056]
[1743690902950,30.66416056,113.54,113.5,8.8105]
[1743690903119,18.64964886,113.52,113.48,0.03]
[1743690903319,40.70416056,113.52,113.48,0.03]
[1743690903638,135.7,113.54,113.49,30.66416056]
[1743690903823,135.7,113.54,113.51,30.66416056]
[1743690904018,10.04,113.55,113.51,30.66416056]
[1743690904348,8.11,113.6,113.53,30.66416056]
[1743690904556,30.66416056,113.58,113.53,30.66416056]
[1743690904849,18.64964886,113.58,113.54,30.66416056]
[1743690905144,18.64964886,113.58,113.54,39.47096056]
[1743690905305,30.66416056,113.57,113.53,8.808]
[1743690906335,30.66416056,113.56,113.53,8.808]
[1743690906833,30.66416056,113.56,113.49,39.47546056]
[1743690906834,30.66416056,113.54,113.49,39.47546056]
[1743690907130,30.66416056,113.52,113.48,0.03]
[1743690907333,49.31380942,113.53,113.48,39.50606056]
[1743690907714,30.66416056,113.52,113.48,0.03]
[1743690907916,30.66416056,113.52,113.48,8.842]
[1743690908118,49.31380942,113.53,113.48,39.50616056]
[1743690908741,10.04,113.53,113.5,30.66416056]
[1743690908920,10.04,113.53,113.49,30.66416056]
[1743690909315,10.04,113.53,113.5,39.47466056]
[1743690909527,10.04,113.53,113.48,8.8419]
[1743690909528,49.59813256,113.52,113.48,8.8419]
[1743690910050,40.70416056,113.53,113.49,30.66416056]
[1743690910415,40.70416056,113.53,113.48,39.50606056]
[1743690910416,49.51256056,113.53,113.48,39.50606056]
[1743690910616,49.31380942,113.52,113.48,0.03]
[1743690910841,49.31380942,113.52,113.48,8.8419]
[1743690911137,18.64964886,113.52,113.48,39.50606056]
[1743690911311,40.70416056,113.53,113.48,39.50606056]
[1743690911510,8.806,113.56,113.51,30.66416056]
[1743690911840,18.64964886,113.56,113.52,30.66416056]
[1743690912025,30.80632213,113.57,113.53,30.66416056]
[1743690912026,18.64964886,113.57,113.53,30.66416056]
[1743690912421,0.48948471,113.59,113.5,6.0173]
[1743690912422,0.063,113.59,113.55,30.66416056]
[1743690913012,18.71264886,113.59,113.55,30.66416056]
[1743690913218,0.063,113.59,113.55,30.66416056]
[1743690913419,0.063,113.59,113.57,8.8051]
[1743690915243,30.66416056,113.58,113.53,8.8082]
[1743690915540,30.66416056,113.58,113.53,39.47236056]
[1743690915757,0.063,113.59,113.56,30.66416056]
[1743690916120,30.72716056,113.59,113.54,30.66416056]
[1743690916442,49.31380942,113.58,113.53,39.47236056]
[1743690916817,18.64964886,113.58,113.54,30.66416056]
[1743690917647,30.66416056,113.57,113.52,8.809]
[1743690917826,49.31380942,113.56,113.51,39.47356056]
[1743690918030,30.66416056,113.54,113.5,8.81]
[1743690918244,135.7,113.56,113.52,30.66416056]
[1743690918621,135.7,113.56,113.53,30.66416056]
[1743690918819,18.64964886,113.57,113.52,30.66416056]
[1743690918820,49.31380942,113.57,113.52,30.66416056]
[1743690919025,30.66416056,113.55,113.51,30.66416056]
[1743690919248,30.66416056,113.55,113.5,39.47416056]
[1743690919542,30.66416056,113.56,113.51,30.66416056]
[1743690919745,30.66416056,113.56,113.52,8.809]
[1743690920133,58.11930942,113.57,113.52,39.47316056]
[1743690920326,18.64964886,113.57,113.53,30.66416056]
[1743690921351,30.66416056,113.58,113.53,30.66416056]
[1743690921562,30.66416056,113.58,113.52,30.8615]
[1743690921563,39.46846056,113.58,113.52,30.8615]
[1743690921733,18.64964886,113.57,113.53,30.66416056]
[1743690922040,49.31380942,113.57,113.52,30.69416056]
[1743690922226,30.66416056,113.56,113.52,0.03]
[1743690922635,49.45597099,113.55,113.52,0.03]
[1743690923218,49.31380942,113.55,113.52,0.03]
[1743690923543,135.7,113.56,113.52,30.69416056]
[1743690923742,18.64964886,113.57,113.54,8.8074]
[1743690925045,49.31380942,113.56,113.52,8.8386]
[1743690925357,30.66416056,113.55,113.52,0.03]
[1743690926045,18.64964886,113.54,113.52,0.03]
[1743690926366,31.09064527,113.53,113.52,0.03]
[1743690927250,39.89884527,113.53,113.52,0.03]
[1743690928048,39.47236056,113.53,113.52,0.03]
[1743690928235,49.31380942,113.53,113.52,0.03]
[1743690928436,58.12200942,113.53,113.52,0.03]
[1743690928656,58.54849413,113.53,113.52,0.03]
[1743690929332,18.64964886,113.53,113.52,0.03]
[1743690929652,30.66416056,113.53,113.52,0.03]
[1743690929861,8.8043,113.58,113.52,30.69416056]
[1743690930067,49.31380942,113.55,113.52,0.03]
[1743690930281,30.66416056,113.53,113.52,0.03]
[1743690930572,18.64964886,113.53,113.52,0.03]
[1743690930734,18.64964886,113.54,113.52,0.03]
[1743690931262,151.23606157,113.59,113.53,39.47236056]
[1743690931588,18.64964886,113.58,113.54,30.66416056]
[1743690931750,49.31380942,113.58,113.54,30.66416056]
[1743690932051,0.063,113.59,113.57,30.66416056]
[1743690932235,0.063,113.59,113.53,31.11312314]
[1743690932432,30.66416056,113.58,113.53,39.47236056]
[1743690932652,30.66416056,113.56,113.52,8.8385]
[1743690933234,49.31380942,113.57,113.54,8.8074]
[1743690933443,18.64964886,113.57,113.54,8.8074]
[1743690933658,49.31380942,113.57,113.54,8.8074]
[1743690934036,58.11890942,113.57,113.53,8.8378]
[1743690934757,58.11890942,113.57,113.53,0.03]
[1743690934758,49.74029413,113.54,113.53,0.03]
[1743690935259,58.54769413,113.54,113.53,0.03]
[1743690936142,60.74976621,113.54,113.53,0.03]
[1743690937243,87.12976621,113.54,113.53,0.03]
[1743690939865,49.74029413,113.53,113.52,0.03]
[1743690940062,59.76029413,113.53,113.52,0.03]
[1743690940277,18.79181043,113.49,113.48,0.03]
[1743690940442,49.74029413,113.49,113.48,0.03]
[1743690941064,58.55159413,113.49,113.48,0.03]
[1743690941876,60.75366621,113.49,113.48,0.03]